Cogmind - Beta 13 *** ADVENTURER MODE // 2024.05.21 @ 22:25:41 Player: Bert Result: Self-destructed Performance ------------- Evolutions (1) 500 Regions Visited (2) 400 Robots Destroyed (17) 85 Value Destroyed (531) 531 Prototype IDs (0) 0 Alien Tech Used (0) 0 Bonus (0) 0 TOTAL SCORE: 1516 Bonus ------- None Cogmind --------- Core Integrity 320/400 Matter 300/300 Energy 160/160 System Corruption 0% Temperature Cool (0) Movement Rolling (115) Ox1 Location -9/Materials Parts ------- > --- POWER (1) -------- Light Nuclear Core > --- PROPULSION (3) --- Compact Wheel Compact Wheel > --- UTILITY (3) ------ Improved Heat Sink Small Storage Unit Large Storage Unit > --- WEAPON (2) ------- Medium Laser Medium Laser > --- INVENTORY (15) --- Improved Ion Engine Wheel Wheel Wheel Heat Sink Medium Laser Medium Laser Peak State ------------ > --- POWER ------------ Light Nuclear Core > --- PROPULSION ------- Wheel Compact Wheel Compact Wheel > --- UTILITY ---------- Improved Heat Sink Small Storage Unit Large Storage Unit > --- WEAPON ----------- Medium Laser Medium Laser > --- INVENTORY -------- Ion Engine Wheel Wheel Wheel Medium Laser Medium Laser [Rating: 13] Favorites ----------- Power Light Nuclear Core Engine Light Ion Engine Power Core Light Nuclear Core Propulsion Compact Wheel Wheel Compact Wheel Utility Small Storage Unit Device Improved Heat Sink Storage Small Storage Unit Weapon Medium Laser Energy Gun Medium Laser Build | -11 -10 -9 ------- Run | Yrd Mat Mat Slots Evolved 2 | . . 2 Power . | . . . Propulsion 1 | . . 1 Utility 1 | . . 1 Weapon . | . . . Parts Attached 11 | 5 4 2 Power 2 | 1 1 . Engine 1 | 1 . . Core 1 | . 1 . Reactor . | . . . Propulsion 4 | 2 1 1 Treads . | . . . Leg . | . . . Wheel 4 | 2 1 1 Hover . | . . . Flight . | . . . Utility 3 | 1 1 1 Device 1 | . 1 . Storage 2 | 1 . 1 Processor . | . . . Hackware . | . . . Protection . | . . . Artifact . | . . . Weapon 2 | 1 1 . Energy Gun 2 | 1 1 . Energy Cannon . | . . . Ballistic Gun . | . . . Ballistic Cannon . | . . . Launcher . | . . . Special Weapon . | . . . Impact Weapon . | . . . Slashing Weapon . | . . . Piercing Weapon . | . . . Special Melee Weapon . | . . . Unidentified Prototypes . | . . . Parts Lost 1 | . . 1 Power . | . . . Propulsion 1 | . . 1 Utility . | . . . Weapon . | . . . Highest Loss Streak 1 | . . 1 To Critical Strikes . | . . . Average Slot Usage (%) 95 | . 93 98 Core 12 | . 12 11 Wheel 29 | . 28 32 Device 12 | . 12 11 Storage 16 | . 14 21 Energy Gun 22 | . 22 22 Naked Turns . | . . . Heaviest Build 35 | 10 15 35 Greatest Support 42 | 32 32 42 Greatest Overweight (x) 1 | . . 1 Average Overweight (x) . | . . . Largest Inventory Capacity 15 | 8 8 15 Average Capacity 10 | 6 8 14 Most Carried 8 | 5 8 8 Average Carried 6 | 2 6 6 Final Capacity 15 | 8 8 15 Final Carried 7 | 4 7 7 Class Distribution -------------------- 100% | Mutant Dominant Class ---------------- Mutant | -10/Materials Mutant | -9/Materials Resources | -11 -10 -9 ----------- Run | Yrd Mat Mat Matter Collected 310 | 249 31 30 Remotely . | . . . Salvage Created 608 | . 303 305 Parts 21 | . 11 10 Haulers Intercepted . | . . . Recyclers Shooed . | . . . Parts Field Recycled . | . . . Retrieved Matter . | . . . Parts Self-Destructed . | . . . Prevented . | . . . Kills | -11 -10 -9 ------- Run | Yrd Mat Mat Combat Hostiles Destroyed 15 | . 6 9 Guns 10 | . 3 7 Classes Destroyed 4 | . 2 2 Watcher 2 | . 2 . Swarmer 3 | . . 3 Grunt 10 | . 6 4 Sentry 2 | . . 2 Best Kill Streak 3 | . 2 3 Combat Bots Only 3 | . 2 3 Max Kills in Single Turn 1 | . 1 1 Gunslinging . | . . . Exploded . | . . . Melee . | . . . Uniques/NPCs Destroyed . | . . . Combat | -11 -10 -9 -------- Run | Yrd Mat Mat Hostile Shots Fired 74 | . 26 48 Missed 23 | . 10 13 Damage Taken 471 | . 151 320 Core 122 | . 42 80 Absorbed by Shields . | . . . Ignored by Resistances 142 | . 46 96 Core Remaining (%) 91 | 100 83 . Volleys Fired 64 | . 29 35 Largest 2 | . 2 2 Hottest 100 | . 100 100 Shots Fired 107 | . 37 70 Gun 107 | . 37 70 Cannon . | . . . Launcher . | . . . Special . | . . . Kinetic . | . . . Thermal 107 | . 37 70 Explosive . | . . . Electromagnetic . | . . . Robot Hit Streak 26 | . 19 26 Robot Miss Streak 2 | . 1 2 Penetration Max . | . . . Secondary Targets . | . . . Shots Hit Robots 90 | . 33 57 Core Hits 26 | . 12 14 Critical Kills . | . . . Critical Parts Destroyed . | . . . Critical Strikes 16 | . 8 8 Burn 16 | . 8 8 Melee Attacks . | . . . Impact . | . . . Slashing . | . . . Piercing . | . . . Sneak Attacks . | . . . Combat Hostiles . | . . . Follow-up Attacks . | . . . Damage Inflicted 1107 | . 424 683 Guns 1099 | . 420 679 Cannons . | . . . Explosions . | . . . Melee . | . . . Ramming 8 | . 4 4 Kinetic . | . . . Thermal 1099 | . 420 679 Explosive . | . . . Electromagnetic . | . . . Impact . | . . . Slashing . | . . . Piercing . | . . . Highest Corruption . | . . . Average Corruption . | . . . Corruption Purged . | . . . Corruption Blocked . | . . . Overload Shots . | . . . Overflow Damage . | . . . Projectiles . | . . . Explosions . | . . . Melee . | . . . Knockbacks . | . . . Impact . | . . . Kinetic . | . . . Secondary . | . . . Self-Inflicted Damage 3 | . 1 2 Shots . | . . . Rammed 3 | . 2 1 Targets Rammed 3 | . 2 1 Kicked . | . . . Crushed . | . . . Highest Temperature 143 | . 143 25 Average Temperature 25 | . 41 7 Received Heat Transfer 258 | . 114 144 Siege Activations . | . . . Robots Corrupted . | . . . Combat Hostiles . | . . . Parts Fried . | . . . Impact Corruptions . | . . . Robots Melted 5 | . 3 2 Combat Hostiles 5 | . 3 2 Parts Melted 14 | . 6 8 Heat Transferred 4440 | . 1850 2590 Parts Sabotaged . | . . . Parts Stolen . | . . . Parts Stripped . | . . . Power Chain Reactions . | . . . Alert | -11 -10 -9 ------- Run | Yrd Mat Mat Peak Influence 351 | . 233 351 Initial 11 | . . 11 Average 126 | . 110 173 Maximum Alert Level 1 | . 1 1 Low Security (%) 72 | 100 77 60 Level 1 27 | . 22 39 Level 2 . | . . . Level 3 . | . . . Level 4 . | . . . Level 5 . | . . . High Security . | . . . Max Security . | . . . Squads Dispatched 3 | . . 3 Investigation 1 | . . 1 Extermination . | . . . Reinforcement 2 | . . 2 Assault . | . . . Garrison . | . . . Intercept . | . . . Searches Triggered . | . . . Construction Impeded . | . . . Haulers Reinforced . | . . . Active Scanning Responses . | . . . Cargo Convoy Interrupts . | . . . Stealth | -11 -10 -9 --------- Run | Yrd Mat Mat Distress Signals . | . . . Communications Jammed . | . . . Distress Signals . | . . . Times Spotted 26 | . 11 15 Peak Tracking Total 4 | . 3 4 Tactical Retreats 2 | . 1 1 Traps | -11 -10 -9 ------- Run | Yrd Mat Mat Traps Triggered . | . . . Indirectly . | . . . Trap Hack Attempts . | . . . Triggered . | . . . Disarmed . | . . . Reprogrammed . | . . . Reused . | . . . Traps Extracted . | . . . Installed . | . . . Triggered . | . . . Machines | -11 -10 -9 ---------- Run | Yrd Mat Mat Machines Disabled . | . . . Max in Single Turn . | . . . Machines Repaired . | . . . Machines Dismantled . | . . . Machines Sabotaged . | . . . Overloaded Fab Kills . | . . . Hacking | -11 -10 -9 --------- Run | Yrd Mat Mat Machines Accessed 3 | . 2 1 Terminals 3 | . 2 1 Fabricators . | . . . Repair Stations . | . . . Recycling Units . | . . . Scanalyzers . | . . . Garrison Access . | . . . Total Hacks 6 | . 3 3 Successful 2 | . 2 . Failed 4 | . 1 3 Catastrophic . | . . . Database Lockouts . | . . . Manual . | . . . Terminals 6 | . 3 3 Fabricators . | . . . Repair Stations . | . . . Recycling Units . | . . . Scanalyzers . | . . . Garrison Access . | . . . Terminal Hacks 2 | . 2 . Machine Index 1 | . 1 . Patrol Status 1 | . 1 . Fabricator Hacks . | . . . Repair Station Hacks . | . . . Recycling Unit Hacks . | . . . Scanalyzer . | . . . Garrison Access Hacks . | . . . Unauthorized Hacks . | . . . Terminals . | . . . Fabricators . | . . . Repair Stations . | . . . Recycling Units . | . . . Scanalyzers . | . . . Garrison Access . | . . . Data Cores Recovered . | . . . Used . | . . . Hacking Detections 2 | . 1 1 Full Trace Events 1 | . . 1 Feedback Events . | . . . Feedback Blocked . | . . . Robot Schematics Acquired . | . . . Robots Built . | . . . Authchips . | . . . Time . | . . . Total Robot Build Rating . | . . . Part Schematics Acquired . | . . . Parts Built . | . . . Authchips . | . . . Time . | . . . Total Part Build Rating . | . . . Parts Repaired . | . . . Time . | . . . Parts Recycled . | . . . Recycled Matter . | . . . Retrieved Matter . | . . . Retrieved Components . | . . . Parts Scanalyzed . | . . . Part Schematics Acquired . | . . . Parts Damaged . | . . . Bothacking | -11 -10 -9 ------------ Run | Yrd Mat Mat Used RIF Installer . | . . . Robots Hacked . | . . . Non-combat . | . . . Combat . | . . . Robot Hacks Applied . | . . . Relay Couplers Released . | . . . Fabnet Peak Effective % . | . . . Robots Rewired . | . . . Allies Hacked . | . . . Hacks Repelled . | . . . Allies | -11 -10 -9 -------- Run | Yrd Mat Mat Total Allies . | . . . Largest Group . | . . . Highest-Rated Group . | . . . Highest-Rated Ally . | . . . Total Orders . | . . . Ally Attacks . | . . . Total Damage . | . . . Kills . | . . . Allies Corrupted . | . . . Allies Melted . | . . . Intel | -11 -10 -9 ------- Run | Yrd Mat Mat Robot Analysis Total . | . . . Derelict Logs Recovered . | . . . Drone Launches . | . . . Drone Recoveries . | . . . Exploration | -11 -10 -9 ------------- Run | Yrd Mat Mat Turns Passed 966 | 72 530 364 Spaces Moved 738 | 70 420 248 Core 22 | 22 . . Treads . | . . . Legs . | . . . Wheels 716 | 48 420 248 Hover . | . . . Flight . | . . . Fastest Speed 50 | 50 100 93 Average Speed 96 | 84 100 94 Slowest Speed 115 | 100 100 115 Overloaded Moves . | . . . Propulsion Burnouts . | . . . Robots Hopped . | . . . Cave-ins Triggered . | . . . Exploration Rate (%) 31 | 4 67 23 Regions Visited 2 Branch Regions . Pre-discovered Areas . | . . . Known Exits Taken . | . . . Unknown Exits Taken 2 | 1 1 . Scrap Searched . | . . . Spaces Dug . | . . . Terrain Destroyed . | . . . Melee . | . . . Projectile . | . . . AOE . | . . . Terrain Rammed . | . . . Walls Destroyed . | . . . Machines Disabled . | . . . Actions | -11 -10 -9 --------- Run | Yrd Mat Mat Total 889 | 85 496 308 Wait 43 | . 25 18 Move 736 | 69 419 248 Hop . | . . . Pick Up 24 | 10 11 3 Fast Attach . | . . . Attach 9 | 5 2 2 Detach . | . . . Swap 2 | . 2 . Drop 8 | 1 6 1 Fire 64 | . 29 35 Melee . | . . . Ram 3 | . 2 1 Kick . | . . . Crush . | . . . Escape Stasis . | . . . Rewire . | . . . Trap . | . . . Miscellaneous . | . . . Route ------- -11/Scrapyard -10/Materials (discovered 2 exits: *Mat / [*Min]) -9/Materials (discovered 1 exit: [*Sto]) History --------- Turn | Location | Event 9 | -11/Scrapyard | Discovered new exit (range 16) 73 | -11/Scrapyard | Entered Materials 178 | -10/Materials | Discovered new exit (range 7) 310 | -10/Materials | Build established: Mutant 588 | -10/Materials | Discovered new exit (range 15) 603 | -10/Materials | Entered another Materials area 603 | -9/Materials | Evolved 2 slots: Propulsion x1, Utility x1 607 | -9/Materials | Discovered new exit (range 5) 967 | -9/Materials | Self-destructed Last Messages --------------- Rifle. 00931_ Y-45 Defender heat damages Lgt. Treads. 00932_ Destroyed Heat Sink. 00932_ Y-45 Defender suffers critical hit (Burn). 00933_ Y-45 Defender heat damages Lgt. Armor Plating. 00933_ Wheel destroyed. 00934_ Y-45 Defender heat damages Heat Sink, Beam Rifle, Lgt. Treads. 00935_ Destroyed Lgt. Treads. 00935_ Destroyed Beam Rifle. 00937_ Y-45 Defender heat damages Heat Sink. 00938_ Y-45 Defender heat damages Hvy. Assault Rifle, Lgt. Armor Plating, Lgt. Treads, Heat Sink. 00939_ Y-45 Defender heat damages Lgt. Armor Plating, Imp. Ion Engine, Hvy. Assault Rifle. 00941_ Destroyed Lgt. Armor Plating. 00941_ Y-45 Defender critical meltdown. 00945_ ALERT: Hostiles spotted, dispatching reinforcements to Terminal M012. 00961_ Destroyed Datajack. 00964_ K-01 Serf cleans the Terminal. Map ----- +----------------------------------------------------+ | #??????# # # """ """ #?????????????? | | #??????# """ #* """# """ """ #?????????????? | | #??????# """ # """# """ """ #?????????????? | | #??????# """ # ! """# ###########???? | | ### #??????# * # # # #???? | | ??#[#??????# %%# [ #######+### #???? | | ??#%#+#+#########/####+####### # #???? | | ??# # #???? | | ??# + #???? | | ??# % # #???? | | ??#+########+####+############ # #???? | | ??# # =!# ## ## #???? | | ??# """ """ # # ## ############???? | | ??# """"""""" + # ## #? #????? | | ??# """"" " # # """ ## #? "T" #?????? | | ??# # #]= """ ## # = % #?????? | | ??# ! !#!= +]= """ ## # !! #?????? | | ??#############!= #== [ + + !/ #?????? | | ??????????????# # ## # !/ !#?????? | | ?????????????#######?#####+#### # #?????? | | ?????????????# ##### ##t #? #?????? | | ?????????????# w #? #?????? | | ?????????????+ T #??#######?????? | | ?????????????# #??????????????? | | ?????????????# ##### ######??????????????? | | ?????????????###+??????##@ ##???????????????????? | | ????????????????????????# a#????????????????????? | | ????????????????????????# u#????????????????????? | | ????????????????????????# #????????????????????? | | ????????????????????????# #????????????????????? | | ???????????????????????? w????????????????????? | | ??????????????????????? T" ???????????????????? | | ?????????????????????? "o ???????????????????? | | ?????????????????????? k = ??????????????????? | | ??????????????????????## ###?????????????????? | | ???????????????????????###+###???????????????????? | | ?????????????????????????????????????????????????? | | ?????????????????????????????????????????????????? | | ?????????????????????????????????????????????????? | | ?????????????????????????????????????????????????? | | ?????????????????????????????????????????????????? | | ?????????????????????????????????????????????????? | | ?????????????????????????????????????????????????? | | ?????????????????????????????????????????????????? | | ?????????????????????????????????????????????????? | | ?????????????????????????????????????????????????? | | ?????????????????????????????????????????????????? | | ?????????????????????????????????????????????????? | | ?????????????????????????????????????????????????? | | ?????????????????????????????????????????????????? | +----------------------------------------------------+ Best States ------------- Heat Dissipation 42 Energy Generation 14 Energy Capacity 160 Matter Stores 300 Matter Capacity 300 Sight Range 16 Terrain Scan Density 10 Resistance: KI 20 Resistance: TH 20 Resistance: EX 20 Resistance: EM 20 Resistance: I 20 Resistance: S 20 Resistance: P 20 Evasion (%) 50 Offensive Hacking 10 Item Schematics ----------------- None Robot Schematics ------------------ None Fabricated ------------ Nothing Alien Tech Used ----------------- None Achievements -------------- None Challenges ------------ None Game ------ Seed HypervelocityImpactRailgun Manual? 0 Play Time 00:10:43 Cumulative 21.8 hours Start 2024.05.21 @ 22:17:35 End 2024.05.21 @ 22:25:41 Sessions 1 Manual Loads 0 Difficulty Adventurer Special Mode None Game No. 44 Rogue 0 Adventurer 44 Explorer 0 Win Type - Total 0 Types 0/0/0/0/0/0/0/0/0 Lore% 29 Gallery% 32 Achievement% 23 Wizard Run 0 Options --------- Layout 0 ASCII 0 Keyboard 1 Movement Numpad Keybinds 0 Fullscreen 1 Font 18/SmallcapsGlow Map View 76x50 Zoom Use 0% Tactical HUD 1 Map Filters NONE Filters NONE Steam 1 RUN: 88ca7a2f-ed4c-4099-af4e-d878e2ee740e